,Portfolio,Expense Area,Cost Centre,Expense Type,Account Code,Amount,Supplier Name,SupplierId,Pay Date,Transaction No.
INSERTED DETAIL,Resources & Corporate Governance ,Toilet Cleaning,WBC01,Materials,0303,516.46,Arco Limited,100015,17/01/2013,10178534
INSERTED DETAIL,Resources & Corporate Governance,Handy man,WHM00,Materials,0303,91.60,Arco Limited,100015,17/01/2013,10178534
INSERTED DETAIL,Resources & Corporate Governance ,Toilet Cleaning,WBC01,Personal Protective Clothing,0340,0.90,Arco Limited,100015,17/01/2013,10178534
INSERTED DETAIL,Resources & Corporate Governance ,Grounds Maintenance,WGM00,Personal Protective Clothing,0340,9.56,Arco Limited,100015,17/01/2013,10178534
INSERTED DETAIL,Resources & Corporate Governance ,Highways,WHG00,Personal Protective Clothing,0340,1.37,Arco Limited,100015,17/01/2013,10178534
INSERTED DETAIL,Resources & Corporate Governance ,Street Cleansing,WSC00,Personal Protective Clothing,0340,10.92,Arco Limited,100015,17/01/2013,10178534
INSERTED DETAIL,Resources & Corporate Governance ,Garage Internal,WVR01,Personal Protective Clothing,0340,1.82,Arco Limited,100015,17/01/2013,10178534
INSERTED DETAIL,Resources & Corporate Governance ,Domestic Waste Collection,WWC00,Personal Protective Clothing,0340,19.11,Arco Limited,100015,17/01/2013,10178534
INSERTED DETAIL,Resources & Corporate Governance ,Trade Waste Collection,WWC01,Personal Protective Clothing,0340,1.82,Arco Limited,100015,17/01/2013,10178534
INSERTED DETAIL,Resources & Corporate Governance ,Garage Internal,WVR01,Materials,0303,156.83,Arco Limited,100015,31/01/2013,10179430
INSERTED DETAIL,Resources & Corporate Governance ,Domestic Waste Collection,WWC00,Materials,0303,289.50,Arco Limited,100015,31/01/2013,10179430
INSERTED DETAIL,Resources & Corporate Governance,Handy man,WHM00,Tools,0304,35.95,Arco Limited,100015,31/01/2013,10179430
INSERTED DETAIL,Resources & Corporate Governance ,Toilet Cleaning,WBC01,Personal Protective Clothing,0340,1.20,Arco Limited,100015,31/01/2013,10179430
INSERTED DETAIL,Resources & Corporate Governance ,Grounds Maintenance,WGM00,Personal Protective Clothing,0340,12.85,Arco Limited,100015,31/01/2013,10179430
INSERTED DETAIL,Resources & Corporate Governance ,Highways,WHG00,Personal Protective Clothing,0340,1.84,Arco Limited,100015,31/01/2013,10179430
INSERTED DETAIL,Resources & Corporate Governance ,Street Cleansing,WSC00,Personal Protective Clothing,0340,14.68,Arco Limited,100015,31/01/2013,10179430
INSERTED DETAIL,Resources & Corporate Governance ,Garage Internal,WVR01,Personal Protective Clothing,0340,2.45,Arco Limited,100015,31/01/2013,10179430
INSERTED DETAIL,Resources & Corporate Governance ,Domestic Waste Collection,WWC00,Personal Protective Clothing,0340,25.70,Arco Limited,100015,31/01/2013,10179430
INSERTED DETAIL,Resources & Corporate Governance ,Trade Waste Collection,WWC01,Personal Protective Clothing,0340,2.45,Arco Limited,100015,31/01/2013,10179430
INSERTED DETAIL,Resources & Corporate Governance ,Domestic Waste Collection,WWC00,Vehicle Repair and Maintenance,0200,567.50,Autolec Services (Rugby),100021,17/01/2013,10178618
INSERTED DETAIL,Housing Revenue Account ,Unplanned Maintenance and Repair,UMR00,R&M External Contractors,0100,2295.80,AWM Electrical Contractors Ltd,100051,03/01/2013,10178177
INSERTED DETAIL,Housing Revenue Account ,Unplanned Maintenance and Repair,UMR00,R&M External Contractors,0100,2234.17,AWM Electrical Contractors Ltd,100051,10/01/2013,10178734
INSERTED DETAIL,Housing Revenue Account ,Unplanned Maintenance and Repair,UMR00,R&M External Contractors,0100,2476.75,AWM Electrical Contractors Ltd,100051,24/01/2013,10179166
INSERTED DETAIL,Capital Program ,Rewiring,HCE20,Capital Contract Payments,5000,1613.00,AWM Electrical Contractors Ltd,100051,24/01/2013,10179166
INSERTED DETAIL,Housing Revenue Account ,Unplanned Maintenance and Repair,UMR00,R&M External Contractors,0100,2096.61,AWM Electrical Contractors Ltd,100051,24/01/2013,10179167
INSERTED DETAIL,Capital Program ,Rewiring,HCE20,Capital Contract Payments,5000,131.85,AWM Electrical Contractors Ltd,100051,24/01/2013,10179167
INSERTED DETAIL,Housing Revenue Account ,Unplanned Maintenance and Repair,UMR00,R&M External Contractors,0100,1779.32,AWM Electrical Contractors Ltd,100051,24/01/2013,10179168
INSERTED DETAIL,Housing Revenue Account ,Unplanned Maintenance and Repair,UMR00,R&M External Contractors,0100,741.97,AWM Electrical Contractors Ltd,100051,24/01/2013,10179296
INSERTED DETAIL,Housing Revenue Account ,Unplanned Maintenance and Repair,UMR00,R&M External Contractors,0100,1515.12,AWM Electrical Contractors Ltd,100051,31/01/2013,10179643
INSERTED DETAIL,Housing Revenue Account ,Unplanned Maintenance and Repair,UMR00,R&M External Contractors,0100,487.38,AWM Electrical Contractors Ltd,100051,31/01/2013,10179644
INSERTED DETAIL,Housing Revenue Account ,Unplanned Maintenance and Repair,UMR00,R&M External Contractors,0100,449.63,Andy Woods Landscapes,100078,24/01/2013,10179170
INSERTED DETAIL,Resources & Corporate Governance ,Maintenance of Customer Services Systems,CIS21,Software Maintenance,0374,889.00,Albany Software Ltd,100084,10/01/2013,10178596
INSERTED DETAIL,Capital Program ,Kitchen Modifications,HIK10,Capital Contract Payments,5000,417.11,A C E Carpentry & Joinery Contractors Ltd,100085,31/01/2013,10179452
INSERTED DETAIL,Housing Revenue Account ,Unplanned Maintenance and Repair,UMR00,R&M External Contractors,0100,650.00,A C E Carpentry & Joinery Contractors Ltd,100085,31/01/2013,10179653
INSERTED DETAIL,Capital Program ,Kitchen Modifications,HIK10,Capital Contract Payments,5000,4514.00,A C E Carpentry & Joinery Contractors Ltd,100085,31/01/2013,10179653
INSERTED DETAIL,Resources & Corporate Governance ,Corporate Assurance,BTR40,Professional Subscriptions,0017,124.00,Alarm,100090,17/01/2013,10178619
INSERTED DETAIL,Resources & Corporate Governance ,Corporate Assurance,BTR40,Conference & Seminar Fees,0401,375.00,Alarm,100090,17/01/2013,10178619
INSERTED DETAIL,Economy Development & Culture,Car Parks General,CPK01,R&M External Contractors,0100,102.00,Cale Briparc Ltd,100158,10/01/2013,10178307
INSERTED DETAIL,Economy Development & Culture,Decrim. of Car Parking on street parking,DPE02,R&M External Contractors,0100,408.00,Cale Briparc Ltd,100158,10/01/2013,10178307
INSERTED DETAIL,Resources & Corporate Governance ,Council Tax and NNDR Collection,CTX01,External Contractor & Operator,0742,523.50,Bristow & Sutor,100159,10/01/2013,10178583
INSERTED DETAIL,Housing Revenue Account ,Control Centre (HRA),CCE00,New Equipment,0300,51.60,British Telecommunications Plc,100161,24/01/2013,10178586
INSERTED DETAIL,Economy Development & Culture,Art Gallery and Museum,AGM00,Telephone Expenses,0371,209.95,British Telecommunications Plc,100161,24/01/2013,10178586
INSERTED DETAIL,Resources & Corporate Governance ,Customer and Information Strategy,CIS10,Telephone Expenses,0371,1064.25,British Telecommunications Plc,100161,24/01/2013,10178586
INSERTED DETAIL,Resources & Corporate Governance ,Civic Responsibilities,CIV00,Telephone Expenses,0371,43.71,British Telecommunications Plc,100161,24/01/2013,10178586
INSERTED DETAIL,Economy Development & Culture,Car Parks General,CPK01,Telephone Expenses,0371,18.00,British Telecommunications Plc,100161,24/01/2013,10178586
INSERTED DETAIL,Resources & Corporate Governance ,Corporate Property Management,CPM00,Telephone Expenses,0371,75.76,British Telecommunications Plc,100161,24/01/2013,10178586
INSERTED DETAIL,Economy Development & Culture,Decrim. of Car Parking on street parking,DPE02,Telephone Expenses,0371,72.02,British Telecommunications Plc,100161,24/01/2013,10178586
INSERTED DETAIL,Sustainable Inclusive Communities,Housing Benefit Administration,HBA00,Telephone Expenses,0371,37.89,British Telecommunications Plc,100161,24/01/2013,10178586
INSERTED DETAIL,Resources & Corporate Governance ,Town Hall,OFF00,Telephone Expenses,0371,75.80,British Telecommunications Plc,100161,24/01/2013,10178586
INSERTED DETAIL,Sustainable Environment ,Caldecott Park/Town Centre Area,PKS00,Telephone Expenses,0371,46.93,British Telecommunications Plc,100161,24/01/2013,10178586
INSERTED DETAIL,Resources & Corporate Governance ,Central Telephone Service,TEL00,Telephone Expenses,0371,37.91,British Telecommunications Plc,100161,24/01/2013,10178586
INSERTED DETAIL,Economy Development & Culture,Visitor Centre,VSC00,Telephone Expenses,0371,75.94,British Telecommunications Plc,100161,24/01/2013,10178586
INSERTED DETAIL,Resources & Corporate Governance ,Council Tax and NNDR Collection,CTX01,Software Maintenance,0374,892.38,British Telecommunications Plc,100161,24/01/2013,10178586
INSERTED DETAIL,Sustainable Environment ,Caldecott Park/Town Centre Area,PKS00,Materials,0303,869.45,Burrow Hill Ltd,100167,03/01/2013,10178029
INSERTED DETAIL,Capital Program ,Crematorium Project,BUR04,External Contractor & Operator,0742,13968.00,Burrow Hill Ltd,100167,17/01/2013,10178030
INSERTED DETAIL,Housing Revenue Account ,Unplanned Maintenance and Repair,UMR00,R&M External Contractors,0100,742.55,Bowen Builders,100241,03/01/2013,10178174
INSERTED DETAIL,Housing Revenue Account ,Unplanned Maintenance and Repair,UMR00,R&M External Contractors,0100,629.37,Bowen Builders,100241,03/01/2013,10178175
INSERTED DETAIL,Capital Program ,Disabled Adaptations,HCR01,Capital Contract Payments,5000,102.81,Bowen Builders,100241,03/01/2013,10178175
INSERTED DETAIL,Housing Revenue Account ,Unplanned Maintenance and Repair,UMR00,R&M External Contractors,0100,729.54,Bowen Builders,100241,10/01/2013,10178733
INSERTED DETAIL,Housing Revenue Account ,Unplanned Maintenance and Repair,UMR00,R&M External Contractors,0100,557.65,Bowen Builders,100241,17/01/2013,10179053
INSERTED DETAIL,Housing Revenue Account ,Unplanned Maintenance and Repair,UMR00,R&M External Contractors,0100,1644.58,Bowen Builders,100241,17/01/2013,10179054
INSERTED DETAIL,Housing Revenue Account ,Unplanned Maintenance and Repair,UMR00,R&M External Contractors,0100,720.18,Bowen Builders,100241,24/01/2013,10179162
INSERTED DETAIL,Capital Program ,Disabled Adaptations,HCR01,Capital Contract Payments,5000,100.21,Bowen Builders,100241,24/01/2013,10179162
INSERTED DETAIL,Housing Revenue Account ,Unplanned Maintenance and Repair,UMR00,R&M External Contractors,0100,1432.08,Bowen Builders,100241,24/01/2013,10179293
INSERTED DETAIL,Housing Revenue Account ,Control Centre CCTV,CCE01,Maintenance of Equipment,0301,5224.50,Barron McCann Ltd,100248,03/01/2013,10178297
INSERTED DETAIL,Housing Revenue Account ,Unplanned Maintenance and Repair,UMR00,R&M External Contractors,0100,2626.89,Barron McCann Ltd,100248,10/01/2013,10178554
INSERTED DETAIL,Capital Program ,Fire Risk Assessment,HCE18,Capital Contract Payments,5000,712.00,Barron McCann Ltd,100248,10/01/2013,10178554
INSERTED DETAIL,Housing Revenue Account ,Unplanned Maintenance and Repair,UMR00,R&M External Contractors,0100,600.58,Barron McCann Ltd,100248,31/01/2013,10179458
INSERTED DETAIL,Resources & Corporate Governance ,Borough Elections,ELC00,Clerical Assistance,0404,739.00,REDACTED PERSONAL DATA,100271,17/01/2013,10178197
INSERTED DETAIL,Resources & Corporate Governance,Corporate Property R&M,CPA01,R&M External Contractors,0100,998.19,Chillaire Service & Maintenance Ltd,100305,31/01/2013,10179246
INSERTED DETAIL,Resources & Corporate Governance ,IT Procurement,CMP00,IT Capital Expenditure,5025,834.00,Stone Computers,100390,03/01/2013,10178122
INSERTED DETAIL,Sustainable Environment ,Clinical Waste,REF04,External Contractor & Operator,0742,513.03,OCS Group UK Ltd t/a Cannon,100436,17/01/2013,10178805
INSERTED DETAIL,Resources & Corporate Governance ,Domestic Waste Collection,WWC00,Vehicle Repair and Maintenance,0200,497.99,Dennis Eagle Ltd,100559,03/01/2013,10177689
INSERTED DETAIL,Resources & Corporate Governance ,Trade Waste Collection,WWC01,Vehicle Repair and Maintenance,0200,26.99,Dennis Eagle Ltd,100559,03/01/2013,10177689
INSERTED DETAIL,Housing Revenue Account ,Unplanned Maintenance and Repair,UMR00,R&M External Contractors,0100,3574.92,JADA Building & Maintenance Services Ltd,100583,03/01/2013,10178176
INSERTED DETAIL,Housing Revenue Account ,Sheltered Housing Team,MAN21,Estates,0457,30.23,JADA Building & Maintenance Services Ltd,100583,03/01/2013,10178176
INSERTED DETAIL,Capital Program ,Disabled Adaptations,HCR01,Capital Contract Payments,5000,1136.40,JADA Building & Maintenance Services Ltd,100583,03/01/2013,10178176
INSERTED DETAIL,Housing Revenue Account ,Unplanned Maintenance and Repair,UMR00,R&M External Contractors,0100,5450.29,JADA Building & Maintenance Services Ltd,100583,03/01/2013,10178288
INSERTED DETAIL,Housing Revenue Account ,Sheltered Housing Team,MAN21,Estates,0457,230.80,JADA Building & Maintenance Services Ltd,100583,03/01/2013,10178288
INSERTED DETAIL,Capital Program ,Fire Risk Assessment,HCE18,Capital Contract Payments,5000,448.74,JADA Building & Maintenance Services Ltd,100583,03/01/2013,10178288
INSERTED DETAIL,Housing Revenue Account ,Unplanned Maintenance and Repair,UMR00,R&M External Contractors,0100,5180.67,JADA Building & Maintenance Services Ltd,100583,17/01/2013,10178860
INSERTED DETAIL,Housing Revenue Account ,Estate Management,MAN22,Estates,0457,302.73,JADA Building & Maintenance Services Ltd,100583,17/01/2013,10178860
INSERTED DETAIL,Capital Program ,Fire Risk Assessment,HCE18,Capital Contract Payments,5000,997.20,JADA Building & Maintenance Services Ltd,100583,17/01/2013,10178860
INSERTED DETAIL,Capital Program ,Disabled Adaptations,HCR01,Capital Contract Payments,5000,575.27,JADA Building & Maintenance Services Ltd,100583,17/01/2013,10178860
INSERTED DETAIL,Capital Program ,Kitchen Modifications,HIK10,Capital Contract Payments,5000,2275.00,JADA Building & Maintenance Services Ltd,100583,17/01/2013,10178860
INSERTED DETAIL,Housing Revenue Account ,Unplanned Maintenance and Repair,UMR00,R&M External Contractors,0100,2694.35,JADA Building & Maintenance Services Ltd,100583,24/01/2013,10179164
INSERTED DETAIL,Capital Program ,Fire Risk Assessment,HCE18,Capital Contract Payments,5000,531.84,JADA Building & Maintenance Services Ltd,100583,24/01/2013,10179164
INSERTED DETAIL,Capital Program ,Disabled Adaptations,HCR01,Capital Contract Payments,5000,900.00,JADA Building & Maintenance Services Ltd,100583,24/01/2013,10179164
INSERTED DETAIL,Capital Program ,Bathroom Modifications,HIS01,Capital Contract Payments,5000,2495.00,JADA Building & Maintenance Services Ltd,100583,24/01/2013,10179164
INSERTED DETAIL,Housing Revenue Account ,Unplanned Maintenance and Repair,UMR00,R&M External Contractors,0100,3547.50,Lee Davies Decorating,100600,10/01/2013,10178553
INSERTED DETAIL,Housing Revenue Account ,Unplanned Maintenance and Repair,UMR00,R&M External Contractors,0100,2968.08,Lee Davies Decorating,100600,24/01/2013,10179173
INSERTED DETAIL,Housing Revenue Account ,Albert Square AP,AGP20,Gas,0131,1764.19,ESPO,100641,10/01/2013,10177801
INSERTED DETAIL,Housing Revenue Account ,Lesley Souter House AP,AGP16,Gas,0131,1319.10,ESPO,100641,10/01/2013,10177802
INSERTED DETAIL,Resources & Corporate Governance,Corporate Property Central Utilities,CPA02,Gas,0131,2387.13,ESPO,100641,24/01/2013,10179001
INSERTED DETAIL,Housing Revenue Account ,Albert Square AP,AGP20,Gas,0131,2000.21,ESPO,100641,31/01/2013,10179003
INSERTED DETAIL,Housing Revenue Account ,Lesley Souter House AP,AGP16,Gas,0131,1482.86,ESPO,100641,31/01/2013,10179004
INSERTED DETAIL,Housing Revenue Account ,Tanser Court AP,AGP17,Gas,0131,1706.36,ESPO,100641,31/01/2013,10179005
INSERTED DETAIL,Resources & Corporate Governance ,WSU Depot,WDP00,Gas,0131,1192.11,ESPO,100641,24/01/2013,10179018
INSERTED DETAIL,Resources & Corporate Governance,Corporate Property Central Utilities,CPA02,Gas,0131,3439.98,ESPO,100641,24/01/2013,10179023
INSERTED DETAIL,Resources & Corporate Governance ,Domestic Waste Collection,WWC00,External Contractor & Operator,0742,1137.47,Container Services UK Limited,100811,17/01/2013,10178558
INSERTED DETAIL,Resources & Corporate Governance ,Street Cleansing,WSC00,Vehicle Repair and Maintenance,0200,453.14,Ford & Slater,100817,10/01/2013,10178392
INSERTED DETAIL,Resources & Corporate Governance ,Garage Internal,WVR01,Materials,0303,649.85,Fuchs Lubricants (Uk) Plc,100832,10/01/2013,10178400
INSERTED DETAIL,,Balance Sheet,BS,Car Leasing Scheme,9244,2902.61,Lex Autolease Ltd,100844,03/01/2013,10178147
INSERTED DETAIL,,Balance Sheet,BS,Car Leasing Scheme,9244,-1385.84,Lex Autolease Ltd,100844,10/01/2013,10178693
INSERTED DETAIL,,Balance Sheet,BS,Car Leasing Scheme,9244,3322.33,Lex Autolease Ltd,100844,10/01/2013,10178694
INSERTED DETAIL,Resources & Corporate Governance ,Town Hall,OFF00,Materials,0303,595.10,Greenham,100890,10/01/2013,10178219
INSERTED DETAIL,Resources & Corporate Governance ,Town Hall,OFF00,Materials,0303,867.00,Greenham,100890,31/01/2013,10179382
INSERTED DETAIL,Sustainable Environment ,Caldecott Park/Town Centre Area,PKS00,Asset Management Expenses,0448,624.28,Godfrey-Payton Chartered Surveyors,100937,10/01/2013,10178453
INSERTED DETAIL,Economy Development & Culture,Visitor Centre,VSC00,Purchases for Resale,0305,550.40,Grays of Cambridge (Intl) Limited,100949,31/01/2013,10179394
INSERTED DETAIL,Resources & Corporate Governance ,Human Resources Centralised Services,RES31,Recruitment Expenses,0012,617.00,TMP (UK) LTD,100972,17/01/2013,10178231
INSERTED DETAIL,Capital Program ,Disabled Adaptations,HCR01,Capital Contract Payments,5000,3361.67,B Hartwell Plumbers Ltd,100989,10/01/2013,10178551
INSERTED DETAIL,Capital Program ,Bathroom Modifications,HIS01,Capital Contract Payments,5000,1584.00,B Hartwell Plumbers Ltd,100989,10/01/2013,10178551
INSERTED DETAIL,Capital Program ,Bathroom Modifications,HIS01,Capital Contract Payments,5000,5970.00,B Hartwell Plumbers Ltd,100989,10/01/2013,10178628
INSERTED DETAIL,Capital Program ,Bathroom Modifications,HIS01,Capital Contract Payments,5000,5970.00,B Hartwell Plumbers Ltd,100989,17/01/2013,10178769
INSERTED DETAIL,Housing Revenue Account ,Unplanned Maintenance and Repair,UMR00,R&M External Contractors,0100,4809.00,Hardall International Limited,101091,19/12/2012,10178050
INSERTED DETAIL,Housing Revenue Account ,Unplanned Maintenance and Repair,UMR00,R&M External Contractors,0100,4809.00,Hardall International Limited,101091,24/01/2013,10179152
INSERTED DETAIL,Resources & Corporate Governance ,Council Tax and NNDR Collection,CTX01,Subscriptions,0421,497.50,Institute Of Revenues Rating & Valuation,101124,17/01/2013,10178294
INSERTED DETAIL,Sustainable Inclusive Communities,Housing Benefit Administration,HBA00,Subscriptions,0421,497.50,Institute Of Revenues Rating & Valuation,101124,17/01/2013,10178294
INSERTED DETAIL,Housing Revenue Account ,Control Centre (HRA),CCE00,New Equipment,0300,3414.00,Chubb Systems LTD,101154,31/01/2013,10179386
INSERTED DETAIL,Housing Revenue Account ,Control Centre (HRA),CCE00,New Equipment,0300,3600.00,Chubb Systems LTD,101154,31/01/2013,10179388
INSERTED DETAIL,Resources & Corporate Governance ,General Financial Services,GFS00,Other Insurance Premiums,0440,116916.34,Jardine Lloyd Thompson,101192,10/01/2013,10177824
INSERTED DETAIL,Resources & Corporate Governance ,General Financial Services,GFS00,Other Insurance Premiums,0440,115709.60,Jardine Lloyd Thompson,101192,10/01/2013,10177825
INSERTED DETAIL,Resources & Corporate Governance ,General Financial Services,GFS00,Other Insurance Premiums,0440,2321.28,Jardine Lloyd Thompson,101192,10/01/2013,10177826
INSERTED DETAIL,Resources & Corporate Governance ,General Financial Services,GFS00,Other Insurance Premiums,0440,551.72,Jardine Lloyd Thompson,101192,17/01/2013,10178854
INSERTED DETAIL,Economy Development & Culture,Ken Marriott Leisure Centre,KML00,Other Miscellaneous Expenses,0444,943.75,DC Leisure,101195,10/01/2013,10178598
INSERTED DETAIL,,User Balance Sheet Cost Centre,BSU,Section Agreements,9865,16825.00,Long Lawford Parish Council,101228,03/01/2013,10178305
INSERTED DETAIL,Resources & Corporate Governance ,Highways,WHG00,External Contractor & Operator,0742,450.00,M & J Engineers Ltd,101278,24/01/2013,10177671
INSERTED DETAIL,Housing Revenue Account ,Unplanned Maintenance and Repair,UMR00,R&M External Contractors,0100,3380.00,MBG Decorators (Rugby Ltd),101288,03/01/2013,10178178
INSERTED DETAIL,Housing Revenue Account ,Unplanned Maintenance and Repair,UMR00,R&M External Contractors,0100,3580.00,MBG Decorators (Rugby Ltd),101288,10/01/2013,10178550
INSERTED DETAIL,Housing Revenue Account ,Unplanned Maintenance and Repair,UMR00,R&M External Contractors,0100,3990.00,MBG Decorators (Rugby Ltd),101288,10/01/2013,10178736
INSERTED DETAIL,Housing Revenue Account ,Unplanned Maintenance and Repair,UMR00,R&M External Contractors,0100,4460.00,MBG Decorators (Rugby Ltd),101288,17/01/2013,10179056
INSERTED DETAIL,Housing Revenue Account ,Unplanned Maintenance and Repair,UMR00,R&M External Contractors,0100,5360.00,MBG Decorators (Rugby Ltd),101288,24/01/2013,10179169
INSERTED DETAIL,Housing Revenue Account ,Unplanned Maintenance and Repair,UMR00,R&M External Contractors,0100,4170.00,MBG Decorators (Rugby Ltd),101288,24/01/2013,10179297
INSERTED DETAIL,Resources & Corporate Governance,Handy man,WHM00,Materials,0303,465.00,Melbros Ltd,101291,10/01/2013,10177239
INSERTED DETAIL,Resources & Corporate Governance,Handy man,WHM00,Materials,0303,730.00,Melbros Ltd,101291,10/01/2013,10177292
INSERTED DETAIL,Resources & Corporate Governance,Handy man,WHM00,Materials,0303,526.00,Melbros Ltd,101291,10/01/2013,10178488
INSERTED DETAIL,Resources & Corporate Governance,Handy man,WHM00,Materials,0303,519.00,Melbros Ltd,101291,24/01/2013,10178498
INSERTED DETAIL,Economy Development & Culture,Art Gallery and Museum,AGM00,Subscriptions,0421,597.94,Museums Association,101361,10/01/2013,10178357
INSERTED DETAIL,Economy Development & Culture,Visitor Centre,VSC00,Events Tickets - Zero Rated,1405,1412.00,National Express Ltd,101392,03/01/2013,10178344
INSERTED DETAIL,Capital Program ,Disabled Facilities Grant,REN01,Capital Grants,5014,653.94,Heart of England Housing Association,101400,10/01/2013,10178459
INSERTED DETAIL,Capital Program ,Disabled Facilities Grant,REN01,Capital Grants,5014,906.03,Heart of England Housing Association,101400,17/01/2013,10178829
INSERTED DETAIL,Capital Program ,Disabled Facilities Grant,REN01,Capital Grants,5014,1262.12,Heart of England Housing Association,101400,17/01/2013,10178867
INSERTED DETAIL,Capital Program ,Disc. Grants Home Safety Surveys,GRA03,Capital Contract Payments,5000,35000.00,Orbit Group Limited,101414,17/01/2013,10178976
INSERTED DETAIL,Sustainable Inclusive Communities,CL Grants,CGS00,Other Agencies,0734,12000.00,Orbit Group Limited,101414,17/01/2013,10178981
INSERTED DETAIL,Resources & Corporate Governance,Central Business Support Services,CSS15,External Printing,0352,980.00,Polycopy,101428,31/01/2013,10179523
INSERTED DETAIL,Resources & Corporate Governance,Housing Drainage,WDR00,Vehicle Running Costs,0201,215.00,Post Office Ltd,101429,10/01/2013,10178716
INSERTED DETAIL,Resources & Corporate Governance ,Grounds Maintenance,WGM00,Vehicle Running Costs,0201,430.00,Post Office Ltd,101429,10/01/2013,10178716
INSERTED DETAIL,Resources & Corporate Governance,Handy man,WHM00,Vehicle Running Costs,0201,430.00,Post Office Ltd,101429,10/01/2013,10178716
INSERTED DETAIL,Resources & Corporate Governance ,Street Cleansing,WSC00,Vehicle Running Costs,0201,860.00,Post Office Ltd,101429,10/01/2013,10178716
INSERTED DETAIL,Resources & Corporate Governance ,Domestic Waste Collection,WWC00,Vehicle Running Costs,0201,815.00,Post Office Ltd,101429,10/01/2013,10178716
INSERTED DETAIL,Resources & Corporate Governance ,Maintenance of Customer Services Systems,CIS21,Software Maintenance,0374,4978.00,Puma Computer Systems Ltd,101436,31/01/2013,10179438
INSERTED DETAIL,Sustainable Inclusive Communities,Sewage Disposal Plant,SDP00,R&M External Contractors,0100,520.28,PJT Pumping Services,101438,10/01/2013,10178763
INSERTED DETAIL,Resources & Corporate Governance ,Customer and Information Strategy,CIS10,Software/Equipment Licences,0379,20840.30,Phoenix Software Ltd,101450,10/01/2013,10178031
INSERTED DETAIL,Resources & Corporate Governance ,Customer and Information Strategy,CIS10,Software/Equipment Licences,0379,2068.08,Phoenix Software Ltd,101450,17/01/2013,10178820
INSERTED DETAIL,Resources & Corporate Governance ,Customer and Information Strategy,CIS10,Software/Equipment Licences,0379,18115.74,Phoenix Software Ltd,101450,17/01/2013,10178821
INSERTED DETAIL,Resources & Corporate Governance,Corporate Property Central Utilities,CPA02,Electricity,0130,612.34,E.ON,101479,10/01/2013,10178348
INSERTED DETAIL,Sustainable Environment ,Caldecott Park/Town Centre Area,PKS00,R&M External Contractors,0100,3900.00,Post To Post Fencing,101490,17/01/2013,10178728
INSERTED DETAIL,Capital Program ,Electric to Gas Conversions,HIM04,Capital Contract Payments,5000,5526.00,Reeds Plumbing & Heating Contractors Ltd,101504,10/01/2013,10178206
INSERTED DETAIL,Capital Program ,Heating Upgrades,HIM01,Capital Contract Payments,5000,6909.00,Reeds Plumbing & Heating Contractors Ltd,101504,10/01/2013,10178207
INSERTED DETAIL,Housing Revenue Account ,Unplanned Maintenance and Repair,UMR00,R&M External Contractors,0100,635.00,Reeds Plumbing & Heating Contractors Ltd,101504,10/01/2013,10178741
INSERTED DETAIL,Resources & Corporate Governance ,Garage Internal,WVR01,Materials,0303,633.60,Rencar Services,101505,10/01/2013,10178408
INSERTED DETAIL,Economy Development & Culture,Art Gallery and Museum,AGM00,Postage & Distribution,0370,10.21,Royal Mail,101554,03/01/2013,10178023
INSERTED DETAIL,Economy Development & Culture,Building Control Services,BCS00,Postage & Distribution,0370,2.45,Royal Mail,101554,03/01/2013,10178023
INSERTED DETAIL,Economy Development & Culture,Building Regulation Fee Earning Account,BCS99,Postage & Distribution,0370,3.25,Royal Mail,101554,03/01/2013,10178023
INSERTED DETAIL,Economy Development & Culture,Car Parks General,CPK01,Postage & Distribution,0370,51.72,Royal Mail,101554,03/01/2013,10178023
INSERTED DETAIL,Resources & Corporate Governance,Central Business Support Services,CSS15,Postage & Distribution,0370,365.26,Royal Mail,101554,03/01/2013,10178023
INSERTED DETAIL,Resources & Corporate Governance ,Council Tax and NNDR Collection,CTX01,Postage & Distribution,0370,222.23,Royal Mail,101554,03/01/2013,10178023
INSERTED DETAIL,Economy Development & Culture,Decrim. of Car Parking on street parking,DPE02,Postage & Distribution,0370,206.89,Royal Mail,101554,03/01/2013,10178023
INSERTED DETAIL,Resources & Corporate Governance ,Electoral Registration,ERG00,Postage & Distribution,0370,25.85,Royal Mail,101554,03/01/2013,10178023
INSERTED DETAIL,Sustainable Inclusive Communities,Housing Benefit Administration,HBA00,Postage & Distribution,0370,226.68,Royal Mail,101554,03/01/2013,10178023
INSERTED DETAIL,Housing Revenue Account ,Supervision and Management General,MAN00,Postage & Distribution,0370,76.44,Royal Mail,101554,03/01/2013,10178023
INSERTED DETAIL,Economy Development & Culture,Planning General/Income,PLN00,Postage & Distribution,0370,236.87,Royal Mail,101554,03/01/2013,10178023
INSERTED DETAIL,Economy Development & Culture,Visitor Centre,VSC00,Postage & Distribution,0370,4.35,Royal Mail,101554,03/01/2013,10178023
INSERTED DETAIL,Resources & Corporate Governance ,General Administration,WAD00,Postage & Distribution,0370,30.77,Royal Mail,101554,03/01/2013,10178023
INSERTED DETAIL,Housing Revenue Account ,Unplanned Maintenance and Repair,UMR00,R&M External Contractors,0100,3560.45,Rugby Plastering Services,101602,10/01/2013,10178549
INSERTED DETAIL,Housing Revenue Account ,Unplanned Maintenance and Repair,UMR00,R&M External Contractors,0100,1347.86,Rugby Plastering Services,101602,24/01/2013,10179295
INSERTED DETAIL,Resources & Corporate Governance,Corporate Property Central Utilities,CPA02,Water Services,0143,1128.30,Severn Trent Water Ltd,101610,24/01/2013,10179093
INSERTED DETAIL,Capital Program ,Parish and Rural Capital Spending,CGR03,Capital Grants,5014,7800.00,Shilton Parish Council,101613,24/01/2013,10179114
INSERTED DETAIL,Resources & Corporate Governance ,IT Procurement,CMP00,IT Capital Expenditure,5025,625.00,Siemens Enterprise Communications Ltd,101616,17/01/2013,10178964
INSERTED DETAIL,Capital Program ,Disabled Facilities Grant,REN01,Capital Grants,5014,4259.00,Stannah Stairlifts Ltd,101623,10/01/2013,10178457
INSERTED DETAIL,Housing Revenue Account ,Unplanned Maintenance and Repair,UMR00,R&M External Contractors,0100,5505.86,Stannah Stairlifts Ltd,101623,10/01/2013,10178546
INSERTED DETAIL,Economy Development & Culture,Planning General/Income,PLN00,Ref. Books Journals & Magazines,0353,1106.70,Sweet & Maxwell Limited,101632,24/01/2013,10179159
INSERTED DETAIL,Resources & Corporate Governance,Corporate Property R&M,CPA01,R&M External Contractors,0100,1038.70,Secom Plc,101671,31/01/2013,10179284
INSERTED DETAIL,Resources & Corporate Governance ,Trade Waste Collection,WWC01,Vehicle Running Costs,0201,774.03,HI-Q Motorway,101736,03/01/2013,10178117
INSERTED DETAIL,Resources & Corporate Governance ,Domestic Waste Collection,WWC00,Vehicle Running Costs,0201,598.00,HI-Q Motorway,101736,24/01/2013,10178991
INSERTED DETAIL,Resources & Corporate Governance ,Trade Waste Collection,WWC01,Vehicle Running Costs,0201,816.00,HI-Q Motorway,101736,24/01/2013,10178991
INSERTED DETAIL,Resources & Corporate Governance ,Domestic Waste Collection,WWC00,Vehicle Running Costs,0201,720.91,HI-Q Motorway,101736,31/01/2013,10179408
INSERTED DETAIL,Resources & Corporate Governance ,Street Cleansing,WSC00,Vehicle Running Costs,0201,59.91,HI-Q Motorway,101736,31/01/2013,10179409
INSERTED DETAIL,Resources & Corporate Governance ,Domestic Waste Collection,WWC00,Vehicle Running Costs,0201,1127.30,HI-Q Motorway,101736,31/01/2013,10179409
INSERTED DETAIL,Capital Program ,Crematorium Project,BUR04,Capital Contract Payments,5000,7282.00,Tudor Environmental,101743,03/01/2013,10178163
INSERTED DETAIL,Resources & Corporate Governance ,Grounds Maintenance,WGM00,Tools,0304,5847.00,Tudor Environmental,101743,31/01/2013,10179484
INSERTED DETAIL,Sustainable Environment ,Caldecott Park/Town Centre Area,PKS00,Materials,0303,693.00,Tudor Environmental,101743,31/01/2013,10179486
INSERTED DETAIL,Resources & Corporate Governance ,Domestic Waste Collection,WWC00,Vehicle Repair and Maintenance,0200,458.02,Terberg Matec Uk,101761,24/01/2013,10178903
INSERTED DETAIL,Resources & Corporate Governance ,Domestic Waste Collection,WWC00,Vehicle Repair and Maintenance,0200,603.03,Terberg Matec Uk,101761,24/01/2013,10179125
INSERTED DETAIL,Resources & Corporate Governance ,Maintenance of Customer Services Systems,CIS21,Subscriptions,0421,490.00,University Of Wolverhampton,101815,24/01/2013,10179201
INSERTED DETAIL,Sustainable Environment ,Parks and Open Spaces,ENV20,Subscriptions,0421,500.00,Warwickshire Wildlife Trust,101860,03/01/2013,10178188
INSERTED DETAIL,Economy Development & Culture,Planning General/Income,PLN00,Consultancy Costs,0740,2604.93,Warwickshire County Council,101893,10/01/2013,10178591
INSERTED DETAIL,Housing Revenue Account ,Unplanned Maintenance and Repair,UMR00,R&M External Contractors,0100,1531.40,Warwickshire County Council,101893,17/01/2013,10178870
INSERTED DETAIL,Economy Development & Culture,Planning General/Income,PLN00,Consultancy Costs,0740,2647.00,Warwickshire County Council,101893,17/01/2013,10178936
INSERTED DETAIL,Economy Development & Culture,Decrim. of Car Parking on street parking,DPE02,Payments to Other Local Authorities,0710,119099.00,Warwickshire County Council,101893,17/01/2013,10178968
INSERTED DETAIL,Economy Development & Culture,Art Gallery and Museum,AGM00,Contract Cleaning,0170,956.83,Warwickshire County Council,101893,24/01/2013,10179183
INSERTED DETAIL,Resources & Corporate Governance ,Trade Waste Collection,WWC01,Removal of Waste - WCC,0711,47127.96,Warwickshire County Council,101893,24/01/2013,10179242
INSERTED DETAIL,Resources & Corporate Governance ,Land Charges,LCH00,Payments to Other Local Authorities,0710,7102.40,Warwickshire County Council,101893,31/01/2013,10179577
INSERTED DETAIL,Resources & Corporate Governance ,Grounds Maintenance,WGM00,Vehicle Repair and Maintenance,0200,91.88,Watling JCB Limited,101922,10/01/2013,10178230
INSERTED DETAIL,Resources & Corporate Governance ,Highways,WHG00,Vehicle Repair and Maintenance,0200,307.10,Watling JCB Limited,101922,10/01/2013,10178230
INSERTED DETAIL,Resources & Corporate Governance ,Domestic Waste Collection,WWC00,Vehicle Repair and Maintenance,0200,217.72,Watling JCB Limited,101922,10/01/2013,10178230
INSERTED DETAIL,Housing Revenue Account ,Unplanned Maintenance and Repair,UMR00,R&M External Contractors,0100,817.31,Adroit Services Ltd,101939,03/01/2013,10178183
INSERTED DETAIL,Capital Program ,Electric to Gas Conversions,HIM04,Capital Contract Payments,5000,2401.98,Adroit Services Ltd,101939,03/01/2013,10178184
INSERTED DETAIL,Housing Revenue Account ,Unplanned Maintenance and Repair,UMR00,R&M External Contractors,0100,94.40,Adroit Services Ltd,101939,03/01/2013,10178185
INSERTED DETAIL,Capital Program ,Heating Upgrades,HIM01,Capital Contract Payments,5000,592.05,Adroit Services Ltd,101939,03/01/2013,10178185
INSERTED DETAIL,Capital Program ,Electric to Gas Conversions,HIM04,Capital Contract Payments,5000,1821.34,Adroit Services Ltd,101939,03/01/2013,10178185
INSERTED DETAIL,Housing Revenue Account ,Unplanned Maintenance and Repair,UMR00,R&M External Contractors,0100,1319.83,Adroit Services Ltd,101939,10/01/2013,10178575
INSERTED DETAIL,Capital Program ,Electric to Gas Conversions,HIM04,Capital Contract Payments,5000,7537.14,Adroit Services Ltd,101939,10/01/2013,10178627
INSERTED DETAIL,Capital Program ,Electric to Gas Conversions,HIM04,Capital Contract Payments,5000,7537.14,Adroit Services Ltd,101939,24/01/2013,10178953
INSERTED DETAIL,Housing Revenue Account ,Unplanned Maintenance and Repair,UMR00,R&M External Contractors,0100,797.87,Adroit Services Ltd,101939,17/01/2013,10179055
INSERTED DETAIL,Capital Program ,Heating Upgrades,HIM01,Capital Contract Payments,5000,35.04,Adroit Services Ltd,101939,17/01/2013,10179055
INSERTED DETAIL,Capital Program ,Electric to Gas Conversions,HIM04,Capital Contract Payments,5000,171.57,Adroit Services Ltd,101939,17/01/2013,10179055
INSERTED DETAIL,Housing Revenue Account ,Unplanned Maintenance and Repair,UMR00,R&M External Contractors,0100,519.15,Adroit Services Ltd,101939,24/01/2013,10179163
INSERTED DETAIL,Capital Program ,Bathroom Modifications,HIS01,Capital Contract Payments,5000,686.72,Adroit Services Ltd,101939,24/01/2013,10179163
INSERTED DETAIL,Housing Revenue Account ,Unplanned Maintenance and Repair,UMR00,R&M External Contractors,0100,1157.62,Adroit Services Ltd,101939,24/01/2013,10179187
INSERTED DETAIL,Capital Program ,Electric to Gas Conversions,HIM04,Capital Contract Payments,5000,7537.14,Adroit Services Ltd,101939,24/01/2013,10179227
INSERTED DETAIL,Housing Revenue Account ,Unplanned Maintenance and Repair,UMR00,R&M External Contractors,0100,1089.80,Adroit Services Ltd,101939,24/01/2013,10179294
INSERTED DETAIL,Resources & Corporate Governance ,Change Team,BTR50,Payments to Other Local Authorities,0710,5000.00,Nuneaton & Bedworth Borough Council,108060,17/01/2013,10177945
INSERTED DETAIL,Resources & Corporate Governance ,Street Cleansing,WSC00,Vehicle Repair and Maintenance,0200,1808.56,Scarab Sweepers Ltd,108252,24/01/2013,10178911
INSERTED DETAIL,Resources & Corporate Governance ,Central Telephone Service,TEL00,Telephone Expenses,0371,906.53,British Telecommunications PLC,108425,03/01/2013,10178301
INSERTED DETAIL,Resources & Corporate Governance ,Central Telephone Service,TEL00,Telephone Expenses,0371,906.69,British Telecommunications PLC,108425,24/01/2013,10179250
INSERTED DETAIL,Housing Revenue Account ,Property Maintenance,MAN23,Subscriptions,0421,-909.00,RICS,108928,04/07/2011,10153956
INSERTED DETAIL,Capital Program ,Crematorium Project,BUR04,Capital Contract Payments,5000,17341.74,Daventry District Council,108940,31/01/2013,10179330
INSERTED DETAIL,Capital Program ,Crematorium Project,BUR04,Miscellaneous Capital Expenditure,5020,7547.80,Daventry District Council,108940,31/01/2013,10179330
INSERTED DETAIL,Economy Development & Culture,Planning Control,PLN01,External Legal Costs,0741,6500.00,SATNAM SINGH CHOONGH,109271,24/01/2013,10179138
INSERTED DETAIL,Housing Revenue Account ,Unplanned Maintenance and Repair,UMR00,R&M External Contractors,0100,3367.00,Ventrolla Midlands,110198,17/01/2013,10178857
INSERTED DETAIL,Resources & Corporate Governance ,Garage Internal,WVR01,Materials,0303,22445.80,Watson Petroleum,110361,10/01/2013,10178407
INSERTED DETAIL,Resources & Corporate Governance ,Garage Internal,WVR01,Materials,0303,33555.00,Watson Petroleum,110361,24/01/2013,10179231
INSERTED DETAIL,Resources & Corporate Governance,Corporate Property R&M,CPA01,R&M External Contractors,0100,763.63,Croxford Electrical,110451,24/01/2013,10178841
INSERTED DETAIL,Resources & Corporate Governance ,Maintenance of Customer Services Systems,CIS21,Software Maintenance,0374,500.00,Result Software Limited,111010,10/01/2013,10178588
INSERTED DETAIL,Resources & Corporate Governance ,Warwickshire On Line Partnership,JCC10,Payments to Other Local Authorities,0710,13472.57,Warwick District Council,111228,03/01/2013,10178295
INSERTED DETAIL,Sustainable Environment ,Cemeteries General,CEM00,External Contractor & Operator,0742,1500.00,P D Timms,111508,10/01/2013,10178463
INSERTED DETAIL,Resources & Corporate Governance,Central Business Support Services,CSS15,Photocopying,0354,783.41,Ricoh UK Limited,111532,31/01/2013,10179464
INSERTED DETAIL,Resources & Corporate Governance ,Grounds Maintenance,WGM00,External Contractor & Operator,0742,3443.87,Mark Smithers,112612,10/01/2013,10178670
INSERTED DETAIL,Sustainable Inclusive Communities,Local Council Tax Support,HBA10,Software Maintenance,0374,35000.00,Civica UK Ltd,112724,24/01/2013,10179044
INSERTED DETAIL,Resources & Corporate Governance ,Domestic Waste Collection,WWC00,Agency Staff,0003,508.37,Extra Personnel Limited,112996,03/01/2013,10178158
INSERTED DETAIL,Resources & Corporate Governance ,Domestic Waste Collection,WWC00,Agency Staff,0003,817.25,Extra Personnel Limited,112996,03/01/2013,10178168
INSERTED DETAIL,Resources & Corporate Governance ,Domestic Waste Collection,WWC00,Agency Staff,0003,1004.18,Extra Personnel Limited,112996,10/01/2013,10178358
INSERTED DETAIL,Resources & Corporate Governance ,Domestic Waste Collection,WWC00,Agency Staff,0003,707.94,Extra Personnel Limited,112996,17/01/2013,10178818
INSERTED DETAIL,Resources & Corporate Governance ,Domestic Waste Collection,WWC00,Agency Staff,0003,508.37,Extra Personnel Limited,112996,31/01/2013,10179522
INSERTED DETAIL,Resources & Corporate Governance ,Maintenance of Customer Services Systems,CIS21,Software Maintenance,0374,2000.00,TriNova Systems Ltd,113069,17/01/2013,10179095
INSERTED DETAIL,Economy Development & Culture,Economic Development General,ECD00,Development Activities,0450,2000.00,MLE Pyrotechnics Ltd,114004,03/01/2013,10178045
INSERTED DETAIL,Economy Development & Culture,Ken Marriott Leisure Centre,KML00,External Contractor & Operator,0742,25181.06,DC Leisure Management Ltd (Otium),114443,10/01/2013,10178542
INSERTED DETAIL,Housing Revenue Account ,Control Centre (HRA),CCE00,New Equipment,0300,81.00,Star Technology Services,114533,17/01/2013,10178597
INSERTED DETAIL,Economy Development & Culture,Car Parks General,CPK01,New Equipment,0300,16.20,Star Technology Services,114533,17/01/2013,10178597
INSERTED DETAIL,Economy Development & Culture,Decrim. of Car Parking on street parking,DPE02,New Equipment,0300,64.80,Star Technology Services,114533,17/01/2013,10178597
INSERTED DETAIL,Economy Development & Culture,Art Gallery and Museum,AGM00,Maintenance of Equipment,0301,81.00,Star Technology Services,114533,17/01/2013,10178597
INSERTED DETAIL,Economy Development & Culture,Art Gallery and Museum,AGM00,Telephone Expenses,0371,511.08,Star Technology Services,114533,17/01/2013,10178597
INSERTED DETAIL,Resources & Corporate Governance ,Customer and Information Strategy,CIS10,Telephone Expenses,0371,460.20,Star Technology Services,114533,17/01/2013,10178597
INSERTED DETAIL,Resources & Corporate Governance ,Council Tax and NNDR Collection,CTX01,Telephone Expenses,0371,81.00,Star Technology Services,114533,17/01/2013,10178597
INSERTED DETAIL,Economy Development & Culture,Visitor Centre,VSC00,Telephone Expenses,0371,511.08,Star Technology Services,114533,17/01/2013,10178597
INSERTED DETAIL,Resources & Corporate Governance ,WSU Depot,WDP00,Telephone Expenses,0371,81.00,Star Technology Services,114533,17/01/2013,10178597
INSERTED DETAIL,Resources & Corporate Governance ,Customer and Information Strategy,CIS10,Hardware Maintenance,0376,81.00,Star Technology Services,114533,17/01/2013,10178597
INSERTED DETAIL,Housing Revenue Account ,Unplanned Maintenance and Repair,UMR00,R&M External Contractors,0100,1341.40,Temple Lifts Ltd,114738,17/01/2013,10178698
INSERTED DETAIL,Resources & Corporate Governance,Corporate Property R&M,CPA01,R&M External Contractors,0100,4963.00,Steve Diston Carpets,114897,03/01/2013,10177757
INSERTED DETAIL,Sustainable Environment ,Cemeteries General,CEM00,Purchases for Resale,0305,640.00,Streetmaster (South Wales) Ltd,114898,24/01/2013,10179048
INSERTED DETAIL,Sustainable Inclusive Communities,Housing Options Team,HOT00,Rents,0140,632.50,Diamond House Hotel,115070,24/01/2013,10177265
INSERTED DETAIL,Resources & Corporate Governance ,General Administration,WAD00,Training fees,0011,990.00,OSTAS,117097,24/01/2013,10179120
INSERTED DETAIL,Sustainable Environment ,Caldecott Park/Town Centre Area,PKS00,External Contractor & Operator,0742,1425.00,Lushglen,117749,17/01/2013,10178875
INSERTED DETAIL,Resources & Corporate Governance,Corporate Property Central Utilities,CPA02,Electricity,0130,4946.24,Southern Electric,118976,24/01/2013,10178876
INSERTED DETAIL,Resources & Corporate Governance ,WSU Depot,WDP00,Electricity,0130,3234.71,Southern Electric,118976,24/01/2013,10178876
INSERTED DETAIL,Resources & Corporate Governance,Corporate Property Central Utilities,CPA02,Electricity,0130,9650.52,Southern Electric,118976,24/01/2013,10178952
INSERTED DETAIL,Sustainable Environment ,Caldecott Park/Town Centre Area,PKS00,External Contractor & Operator,0742,1882.50,Bristol City Council,120110,03/01/2013,10178134
INSERTED DETAIL,Sustainable Environment ,Caldecott Park/Town Centre Area,PKS00,External Contractor & Operator,0742,1864.80,Bristol City Council,120110,03/01/2013,10178135
INSERTED DETAIL,Resources & Corporate Governance ,Toilet Cleaning,WBC01,Agency Staff,0003,522.90,G-Staff Ltd,120173,17/01/2013,10177900
INSERTED DETAIL,Resources & Corporate Governance,Handy man,WHM00,Agency Staff,0003,285.57,G-Staff Ltd,120173,17/01/2013,10177900
INSERTED DETAIL,Resources & Corporate Governance ,Street Cleansing,WSC00,Agency Staff,0003,149.55,G-Staff Ltd,120173,17/01/2013,10177900
INSERTED DETAIL,Resources & Corporate Governance ,Domestic Waste Collection,WWC00,Agency Staff,0003,2071.12,G-Staff Ltd,120173,17/01/2013,10177900
INSERTED DETAIL,Resources & Corporate Governance ,Trade Waste Collection,WWC01,Agency Staff,0003,585.59,G-Staff Ltd,120173,17/01/2013,10177900
INSERTED DETAIL,Resources & Corporate Governance,Handy man,WHM00,Agency Staff,0003,410.33,G-Staff Ltd,120173,03/01/2013,10178166
INSERTED DETAIL,Resources & Corporate Governance ,Street Cleansing,WSC00,Agency Staff,0003,368.89,G-Staff Ltd,120173,03/01/2013,10178166
INSERTED DETAIL,Resources & Corporate Governance ,Domestic Waste Collection,WWC00,Agency Staff,0003,1836.30,G-Staff Ltd,120173,03/01/2013,10178166
INSERTED DETAIL,Resources & Corporate Governance ,Trade Waste Collection,WWC01,Agency Staff,0003,205.00,G-Staff Ltd,120173,03/01/2013,10178166
INSERTED DETAIL,Resources & Corporate Governance ,Toilet Cleaning,WBC01,Agency Staff,0003,522.90,G-Staff Ltd,120173,10/01/2013,10178233
INSERTED DETAIL,Resources & Corporate Governance,Handy man,WHM00,Agency Staff,0003,410.33,G-Staff Ltd,120173,10/01/2013,10178233
INSERTED DETAIL,Resources & Corporate Governance ,Street Cleansing,WSC00,Agency Staff,0003,149.55,G-Staff Ltd,120173,10/01/2013,10178233
INSERTED DETAIL,Resources & Corporate Governance ,Domestic Waste Collection,WWC00,Agency Staff,0003,1959.66,G-Staff Ltd,120173,10/01/2013,10178233
INSERTED DETAIL,Resources & Corporate Governance ,Trade Waste Collection,WWC01,Agency Staff,0003,463.32,G-Staff Ltd,120173,10/01/2013,10178233
INSERTED DETAIL,Resources & Corporate Governance ,Toilet Cleaning,WBC01,Agency Staff,0003,158.20,G-Staff Ltd,120173,31/01/2013,10179510
INSERTED DETAIL,Resources & Corporate Governance,Handy man,WHM00,Agency Staff,0003,243.98,G-Staff Ltd,120173,31/01/2013,10179510
INSERTED DETAIL,Resources & Corporate Governance ,Street Cleansing,WSC00,Agency Staff,0003,56.96,G-Staff Ltd,120173,31/01/2013,10179510
INSERTED DETAIL,Resources & Corporate Governance ,Domestic Waste Collection,WWC00,Agency Staff,0003,2321.29,G-Staff Ltd,120173,31/01/2013,10179510
INSERTED DETAIL,Resources & Corporate Governance ,Trade Waste Collection,WWC01,Agency Staff,0003,553.03,G-Staff Ltd,120173,31/01/2013,10179510
INSERTED DETAIL,Resources & Corporate Governance ,Toilet Cleaning,WBC01,Agency Staff,0003,158.20,G-Staff Ltd,120173,31/01/2013,10179511
INSERTED DETAIL,Resources & Corporate Governance,Handy man,WHM00,Agency Staff,0003,123.00,G-Staff Ltd,120173,31/01/2013,10179511
INSERTED DETAIL,Resources & Corporate Governance ,Street Cleansing,WSC00,Agency Staff,0003,368.89,G-Staff Ltd,120173,31/01/2013,10179511
INSERTED DETAIL,Resources & Corporate Governance ,Domestic Waste Collection,WWC00,Agency Staff,0003,605.85,G-Staff Ltd,120173,31/01/2013,10179511
INSERTED DETAIL,Resources & Corporate Governance ,Customer and Information Strategy,CIS10,Software Maintenance,0374,9000.00,Jadu Ltd,120407,03/01/2013,10177717
INSERTED DETAIL,Resources & Corporate Governance ,Domestic Waste Collection,WWC00,Vehicle Repair and Maintenance,0200,525.00,Smartpower,121369,10/01/2013,10178381
INSERTED DETAIL,Resources & Corporate Governance ,Maintenance of Customer Services Systems,CIS21,Software Maintenance,0374,2117.06,Northgate Information Solutions UK Ltd,121606,24/01/2013,10179238
INSERTED DETAIL,Resources & Corporate Governance ,Maintenance of Customer Services Systems,CIS21,Software Maintenance,0374,2490.00,Northgate Information Solutions UK Ltd,121606,24/01/2013,10179239
INSERTED DETAIL,Resources & Corporate Governance ,Maintenance of Customer Services Systems,CIS21,Software Purchase,0373,950.00,Northgate Information Solutions UK Ltd,121606,31/01/2013,10179584
INSERTED DETAIL,Housing Revenue Account ,Supervision and Management General,MAN00,Other Miscellaneous Expenses,0444,5000.00,Travelers Insurance Co,121642,31/01/2013,10178072
INSERTED DETAIL,Resources & Corporate Governance ,Maintenance of Customer Services Systems,CIS21,Software Maintenance,0374,4435.35,Covalent Software Limited,122520,03/01/2013,10177940
INSERTED DETAIL,Resources & Corporate Governance ,Customer and Information Strategy,CIS10,Hardware Maintenance,0376,2578.91,Cable & Wireless,123224,17/01/2013,10178584
INSERTED DETAIL,Resources & Corporate Governance ,Central Telephone Service,TEL00,Telephone Expenses,0371,974.33,Cable & Wireless,123224,17/01/2013,10178585
INSERTED DETAIL,Sustainable Environment,Regulatory Services,REG00,Software/Equipment Licences,0379,1028.28,Compressor & Vehicle Lift Services Ltd,126546,31/01/2013,10179334
INSERTED DETAIL,Housing Revenue Account ,Unplanned Maintenance and Repair,UMR00,R&M External Contractors,0100,250.00,George and Company (Surveyors) Ltd,126668,31/01/2013,10179435
INSERTED DETAIL,Housing Revenue Account ,Property Maintenance,MAN23,External Contractor & Operator,0742,250.00,George and Company (Surveyors) Ltd,126668,31/01/2013,10179435
INSERTED DETAIL,Resources & Corporate Governance,Handy man,WHM00,External Contractor & Operator,0742,607.50,M P Hudson & Son,129334,10/01/2013,10178559
INSERTED DETAIL,Resources & Corporate Governance,Handy man,WHM00,External Contractor & Operator,0742,814.10,M P Hudson & Son,129334,17/01/2013,10179028
INSERTED DETAIL,Capital Program ,Heating Upgrades,HIM01,Capital Contract Payments,5000,679.20,National Grid Gas plc,130213,31/01/2013,10179492
INSERTED DETAIL,Capital Program ,Electric to Gas Conversions,HIM04,Capital Contract Payments,5000,679.20,National Grid Gas plc,130213,31/01/2013,10179493
INSERTED DETAIL,Capital Program ,Electric to Gas Conversions,HIM04,Capital Contract Payments,5000,679.20,National Grid Gas plc,130213,31/01/2013,10179494
INSERTED DETAIL,Capital Program ,Electric to Gas Conversions,HIM04,Capital Contract Payments,5000,679.20,National Grid Gas plc,130213,31/01/2013,10179496
INSERTED DETAIL,Capital Program ,Electric to Gas Conversions,HIM04,Capital Contract Payments,5000,679.20,National Grid Gas plc,130213,31/01/2013,10179498
INSERTED DETAIL,Economy Development & Culture,Decrim. of Car Parking on street parking,DPE02,Cash Collection,0744,591.84,Jade Security Services Ltd,131711,10/01/2013,10178682
INSERTED DETAIL,Economy Development & Culture,Car Parks General,CPK01,Cash Collection,0744,991.88,Jade Security Services Ltd,131711,10/01/2013,10178683
INSERTED DETAIL,Sustainable Inclusive Communities,Housing Options Team,HOT00,Rents,0140,840.00,N Mallidi,132033,03/01/2013,10178138
INSERTED DETAIL,Sustainable Inclusive Communities,Housing Options Team,HOT00,Rents,0140,728.00,N Mallidi,132033,24/01/2013,10178449
INSERTED DETAIL,Housing Revenue Account ,Unplanned Maintenance and Repair,UMR00,R&M External Contractors,0100,487.74,Wilson Electrics,132051,03/01/2013,10178287
INSERTED DETAIL,Housing Revenue Account ,Unplanned Maintenance and Repair,UMR00,R&M External Contractors,0100,970.88,Wilson Electrics,132051,17/01/2013,10178858
INSERTED DETAIL,Resources & Corporate Governance ,Corporate Assurance,BTR40,External Contractor & Operator,0742,7560.00,HW Controls & Assurance,132240,24/01/2013,10176548
INSERTED DETAIL,Economy Development & Culture,Town Centre CCTV and Management,TVM00,Other Agencies,0734,20115.98,Rugby First Ltd - BID,133176,17/01/2013,10179065
INSERTED DETAIL,Economy Development & Culture,Car Parks General,CPK01,Software Maintenance,0374,343.00,Chipside Limited,133289,24/01/2013,10178445
INSERTED DETAIL,Economy Development & Culture,Decrim. of Car Parking on street parking,DPE02,Software Maintenance,0374,1372.00,Chipside Limited,133289,24/01/2013,10178445
INSERTED DETAIL,Economy Development & Culture,Car Parks General,CPK01,R&M External Contractors,0100,338.97,Chipside Limited,133289,24/01/2013,10178446
INSERTED DETAIL,Economy Development & Culture,Decrim. of Car Parking on street parking,DPE02,R&M External Contractors,0100,1355.89,Chipside Limited,133289,24/01/2013,10178446
INSERTED DETAIL,Economy Development & Culture,Car Parks General,CPK01,Other Agencies,0734,124.00,Chipside Limited,133289,24/01/2013,10178541
INSERTED DETAIL,Economy Development & Culture,Decrim. of Car Parking on street parking,DPE02,Other Agencies,0734,496.00,Chipside Limited,133289,24/01/2013,10178541
INSERTED DETAIL,Resources & Corporate Governance,Handy man,WHM00,External Contractor & Operator,0742,2171.32,Homecare Decorating,133884,10/01/2013,10178412
INSERTED DETAIL,Resources & Corporate Governance,Handy man,WHM00,External Contractor & Operator,0742,1147.89,Homecare Decorating,133884,10/01/2013,10178414
INSERTED DETAIL,Resources & Corporate Governance,Handy man,WHM00,External Contractor & Operator,0742,1053.00,Homecare Decorating,133884,10/01/2013,10178610
INSERTED DETAIL,Resources & Corporate Governance,Handy man,WHM00,External Contractor & Operator,0742,616.00,Homecare Decorating,133884,10/01/2013,10178611
INSERTED DETAIL,Resources & Corporate Governance,Handy man,WHM00,External Contractor & Operator,0742,497.50,Homecare Decorating,133884,31/01/2013,10179528
INSERTED DETAIL,Housing Revenue Account ,Unplanned Maintenance and Repair,UMR00,R&M External Contractors,0100,2429.96,Delec Ltd,133887,03/01/2013,10178286
INSERTED DETAIL,Housing Revenue Account ,Unplanned Maintenance and Repair,UMR00,R&M External Contractors,0100,686.13,Delec Ltd,133887,10/01/2013,10178552
INSERTED DETAIL,Sustainable Inclusive Communities,Woodside Park,TVR00,R&M External Contractors,0100,60.29,Delec Ltd,133887,10/01/2013,10178740
INSERTED DETAIL,Housing Revenue Account ,Unplanned Maintenance and Repair,UMR00,R&M External Contractors,0100,1626.22,Delec Ltd,133887,10/01/2013,10178740
INSERTED DETAIL,Housing Revenue Account ,Unplanned Maintenance and Repair,UMR00,R&M External Contractors,0100,2910.32,Delec Ltd,133887,17/01/2013,10179058
INSERTED DETAIL,Capital Program ,Disabled Adaptations,HCR01,Capital Contract Payments,5000,196.23,Delec Ltd,133887,17/01/2013,10179058
INSERTED DETAIL,Housing Revenue Account ,Unplanned Maintenance and Repair,UMR00,R&M External Contractors,0100,2956.62,Delec Ltd,133887,24/01/2013,10179298
INSERTED DETAIL,Housing Revenue Account ,Unplanned Maintenance and Repair,UMR00,R&M External Contractors,0100,2263.05,Delec Ltd,133887,31/01/2013,10179654
INSERTED DETAIL,Resources & Corporate Governance ,Human Resources Centralised Services,RES31,Training fees,0011,640.00,Construction Study Centre,134737,24/01/2013,10179046
INSERTED DETAIL,Sustainable Inclusive Communities,CL Grants,CGS00,Grants To Voluntary Organisations,0720,2000.00,Brownsover Community Association,135180,17/01/2013,10178974
INSERTED DETAIL,Housing Revenue Account ,Avon Court AP,AGP02,Electricity,0130,493.86,Southern Electric,135653,17/01/2013,10178879
INSERTED DETAIL,Housing Revenue Account ,Dickinson Court AP,AGP03,Electricity,0130,725.66,Southern Electric,135653,17/01/2013,10178879
INSERTED DETAIL,Housing Revenue Account ,Duffy Place AP,AGP04,Electricity,0130,566.94,Southern Electric,135653,17/01/2013,10178879
INSERTED DETAIL,Housing Revenue Account ,Frederick Press Way AP,AGP06,Electricity,0130,75.95,Southern Electric,135653,17/01/2013,10178879
INSERTED DETAIL,Housing Revenue Account ,John Thwaites Close AP,AGP08,Electricity,0130,-91.30,Southern Electric,135653,17/01/2013,10178879
INSERTED DETAIL,Housing Revenue Account ,Mercer Court AP,AGP09,Electricity,0130,489.06,Southern Electric,135653,17/01/2013,10178879
INSERTED DETAIL,Housing Revenue Account ,Pettiver Crescent I AP,AGP10,Electricity,0130,777.42,Southern Electric,135653,17/01/2013,10178879
INSERTED DETAIL,Housing Revenue Account ,Sun Street/Windsor Street AP,AGP14,Electricity,0130,707.50,Southern Electric,135653,17/01/2013,10178879
INSERTED DETAIL,Housing Revenue Account ,Lesley Souter House AP,AGP16,Electricity,0130,1365.10,Southern Electric,135653,17/01/2013,10178879
INSERTED DETAIL,Housing Revenue Account ,Tanser Court AP,AGP17,Electricity,0130,-738.95,Southern Electric,135653,17/01/2013,10178879
INSERTED DETAIL,Housing Revenue Account ,Edward Court AP,AGP19,Electricity,0130,711.87,Southern Electric,135653,17/01/2013,10178879
INSERTED DETAIL,Housing Revenue Account ,Albert Square AP,AGP20,Electricity,0130,55.73,Southern Electric,135653,17/01/2013,10178879
INSERTED DETAIL,Housing Revenue Account ,Clare Court Site,AGP27,Electricity,0130,87.18,Southern Electric,135653,17/01/2013,10178879
INSERTED DETAIL,Housing Revenue Account ,Alexandra/James Court AP,AGP30,Electricity,0130,287.78,Southern Electric,135653,17/01/2013,10178879
INSERTED DETAIL,Housing Revenue Account ,Assheton Close AP,AGP36,Electricity,0130,12.25,Southern Electric,135653,17/01/2013,10178879
INSERTED DETAIL,Housing Revenue Account ,Clifton Road AP,AGP41,Electricity,0130,77.95,Southern Electric,135653,17/01/2013,10178879
INSERTED DETAIL,Housing Revenue Account ,Deepmore Road/Lytham Road AP,AGP42,Electricity,0130,-213.68,Southern Electric,135653,17/01/2013,10178879
INSERTED DETAIL,Housing Revenue Account ,Featherbed Lane I AP,AGP45,Electricity,0130,517.31,Southern Electric,135653,17/01/2013,10178879
INSERTED DETAIL,Housing Revenue Account ,Fox Close AP,AGP47,Electricity,0130,99.02,Southern Electric,135653,17/01/2013,10178879
INSERTED DETAIL,Housing Revenue Account ,Jackson Road I AP,AGP53,Electricity,0130,56.90,Southern Electric,135653,17/01/2013,10178879
INSERTED DETAIL,Housing Revenue Account ,Lever Road I AP,AGP57,Electricity,0130,668.34,Southern Electric,135653,17/01/2013,10178879
INSERTED DETAIL,Housing Revenue Account ,The Kent AP,AGP67,Electricity,0130,102.65,Southern Electric,135653,17/01/2013,10178879
INSERTED DETAIL,Housing Revenue Account ,Control Centre CCTV,CCE01,Electricity,0130,1943.49,Southern Electric,135653,17/01/2013,10178879
INSERTED DETAIL,Housing Revenue Account ,Supervision and Management General,MAN00,Electricity,0130,239.91,Southern Electric,135653,17/01/2013,10178879
INSERTED DETAIL,Housing Revenue Account ,Multi-Storey Flats,MSF00,Electricity,0130,7694.95,Southern Electric,135653,17/01/2013,10178879
INSERTED DETAIL,Sustainable Inclusive Communities,Woodside Park,TVR00,Electricity,0130,1056.59,Southern Electric,135653,17/01/2013,10178879
INSERTED DETAIL,Resources & Corporate Governance ,Council Tax and NNDR Collection,CTX01,External Legal Costs,0741,1432.00,Summers Nigh Law,136330,10/01/2013,10178456
INSERTED DETAIL,Resources & Corporate Governance ,Council Tax and NNDR Collection,CTX01,External Legal Costs,0741,1385.00,Summers Nigh Law,136330,10/01/2013,10178691
INSERTED DETAIL,Resources & Corporate Governance ,Council Tax and NNDR Collection,CTX01,External Legal Costs,0741,1385.00,Summers Nigh Law,136330,17/01/2013,10178920
INSERTED DETAIL,Resources & Corporate Governance ,Council Tax and NNDR Collection,CTX01,External Legal Costs,0741,1974.00,Summers Nigh Law,136330,31/01/2013,10179564
INSERTED DETAIL,Sustainable Environment ,Burglary,CAD03,Development Activities,0450,1350.00,Solon Security Ltd,137493,24/01/2013,10178125
INSERTED DETAIL,Resources & Corporate Governance ,Street Cleansing,WSC00,Materials,0303,1228.60,Danline International Ltd,137588,24/01/2013,10178902
INSERTED DETAIL,Housing Revenue Account ,Unplanned Maintenance and Repair,UMR00,R&M External Contractors,0100,1706.44,Regent Office Care Ltd T/A Regent Cleaning,138934,24/01/2013,10179174
INSERTED DETAIL,Resources & Corporate Governance ,Town Hall,OFF00,Contract Cleaning,0170,4280.55,Regent Office Care Ltd T/A Regent Cleaning,138934,31/01/2013,10179288
INSERTED DETAIL,Resources & Corporate Governance ,WSU Depot,WDP00,Contract Cleaning,0170,219.00,Regent Office Care Ltd T/A Regent Cleaning,138934,31/01/2013,10179288
INSERTED DETAIL,Resources & Corporate Governance ,Grounds Maintenance,WGM00,Contract Cleaning,0170,147.50,Regent Office Care Ltd T/A Regent Cleaning,138934,31/01/2013,10179288
INSERTED DETAIL,Housing Revenue Account ,Sheltered Housing,AGP00,Contract Cleaning,0170,14297.47,Regent Office Care Ltd T/A Regent Cleaning,138934,31/01/2013,10179289
INSERTED DETAIL,Sustainable Inclusive Communities,Housing Options Team,HOT00,Contract Cleaning,0170,134.76,Regent Office Care Ltd T/A Regent Cleaning,138934,31/01/2013,10179289
INSERTED DETAIL,Housing Revenue Account ,Estate Management,MAN22,Contract Cleaning,0170,3078.90,Regent Office Care Ltd T/A Regent Cleaning,138934,31/01/2013,10179289
INSERTED DETAIL,Housing Revenue Account ,Multi-Storey Flats,MSF00,Contract Cleaning,0170,1731.90,Regent Office Care Ltd T/A Regent Cleaning,138934,31/01/2013,10179289
INSERTED DETAIL,Housing Revenue Account ,Unplanned Maintenance and Repair,UMR00,R&M External Contractors,0100,935.36,Regent Office Care Ltd T/A Regent Cleaning,138934,24/01/2013,10179300
INSERTED DETAIL,Housing Revenue Account ,Asbestos Surveys,UMR05,R&M External Contractors,0100,1690.00,Rider Levett Bucknall UK Ltd,139918,03/01/2013,10178180
INSERTED DETAIL,Housing Revenue Account ,Unplanned Maintenance and Repair,UMR00,R&M External Contractors,0100,1205.10,Rider Levett Bucknall UK Ltd,139918,17/01/2013,10178861
INSERTED DETAIL,Housing Revenue Account ,Asbestos Surveys,UMR05,R&M External Contractors,0100,2080.00,Rider Levett Bucknall UK Ltd,139918,17/01/2013,10178861
INSERTED DETAIL,Capital Program ,Heating Upgrades,HIM01,Capital Contract Payments,5000,130.00,Rider Levett Bucknall UK Ltd,139918,17/01/2013,10178861
INSERTED DETAIL,Capital Program ,Electric to Gas Conversions,HIM04,Capital Contract Payments,5000,130.00,Rider Levett Bucknall UK Ltd,139918,17/01/2013,10178861
INSERTED DETAIL,Sustainable Environment ,Caldecott Park/Town Centre Area,PKS00,External Contractor & Operator,0742,1525.00,D J Whitlock Plant Hire,140156,31/01/2013,10179390
INSERTED DETAIL,Resources & Corporate Governance ,Trade Waste Collection,WWC01,Vehicle Repair and Maintenance,0200,651.40,Midlands Truck & Van Ltd,140322,17/01/2013,10178625
INSERTED DETAIL,Resources & Corporate Governance ,Domestic Waste Collection,WWC00,Vehicle Repair and Maintenance,0200,1621.13,Midlands Truck & Van Ltd,140322,24/01/2013,10178806
INSERTED DETAIL,Housing Revenue Account ,Unplanned Maintenance and Repair,UMR00,R&M External Contractors,0100,366.16,Carpenter Surveyors Ltd,141374,10/01/2013,10178738
INSERTED DETAIL,Housing Revenue Account ,Property Maintenance,MAN23,External Contractor & Operator,0742,343.41,Carpenter Surveyors Ltd,141374,10/01/2013,10178738
INSERTED DETAIL,Resources & Corporate Governance ,Customer and Information Strategy,CIS10,Telephone Expenses,0371,793.16,Zen Internet Ltd,141612,03/01/2013,10178302
INSERTED DETAIL,Resources & Corporate Governance ,Customer and Information Strategy,CIS10,Telephone Expenses,0371,750.62,Zen Internet Ltd,141612,24/01/2013,10179177
INSERTED DETAIL,Housing Revenue Account ,Property Maintenance,MAN23,R&M External Contractors,0100,600.00,Ascertiva Group Ltd,142076,31/01/2013,10179189
INSERTED DETAIL,Capital Program ,Bathroom Modifications,HIS01,Capital Contract Payments,5000,15015.00,Ian Williams Ltd,142238,10/01/2013,10177513
INSERTED DETAIL,Capital Program ,Bathroom Modifications,HIS01,Capital Contract Payments,5000,34320.00,Ian Williams Ltd,142238,10/01/2013,10178205
INSERTED DETAIL,Sustainable Environment ,Crime and Disorder Activities,CAD00,Other Miscellaneous Expenses,0444,720.00,Liberty Graphics,143410,10/01/2013,10177508
INSERTED DETAIL,Resources & Corporate Governance ,Human Resources Centralised Services,RES31,Training fees,0011,765.00,UnicornTraining Group Ltd,143997,03/01/2013,10178086
INSERTED DETAIL,Housing Revenue Account ,Control Centre CCTV,CCE01,External Contractor & Operator,0742,15928.66,Securitas Security Personnel Ltd,145079,31/01/2013,10179576
INSERTED DETAIL,Sustainable Inclusive Communities,Housing Options Team,HOT00,Agency Staff,0003,598.97,James Andrews Recruitment Solutions Ltd,145100,10/01/2013,10178336
INSERTED DETAIL,Sustainable Inclusive Communities,Housing Options Team,HOT00,Agency Staff,0003,598.97,James Andrews Recruitment Solutions Ltd,145100,10/01/2013,10178337
INSERTED DETAIL,Housing Revenue Account ,Property Maintenance,MAN23,Agency Staff,0003,667.00,James Andrews Recruitment Solutions Ltd,145100,10/01/2013,10178692
INSERTED DETAIL,Housing Revenue Account ,Property Maintenance,MAN23,Agency Staff,0003,1217.80,James Andrews Recruitment Solutions Ltd,145100,17/01/2013,10178849
INSERTED DETAIL,Sustainable Inclusive Communities,Housing Options Team,HOT00,Agency Staff,0003,615.38,James Andrews Recruitment Solutions Ltd,145100,24/01/2013,10178850
INSERTED DETAIL,Sustainable Inclusive Communities,Housing Options Team,HOT00,Agency Staff,0003,590.76,James Andrews Recruitment Solutions Ltd,145100,24/01/2013,10178977
INSERTED DETAIL,Housing Revenue Account ,Property Maintenance,MAN23,Agency Staff,0003,1189.00,James Andrews Recruitment Solutions Ltd,145100,17/01/2013,10178978
INSERTED DETAIL,Housing Revenue Account ,Property Maintenance,MAN23,Agency Staff,0003,3184.00,James Andrews Recruitment Solutions Ltd,145100,24/01/2013,10179052
INSERTED DETAIL,Capital Program ,Vehicle Workshop Extension,VWE00,Capital Contract Payments,5000,6713.00,Postlethwaite,145230,03/01/2013,10178131
INSERTED DETAIL,Resources & Corporate Governance ,Street Cleansing,WSC00,Agency Staff,0003,1130.34,Blue Arrow Limited,145492,10/01/2013,10178365
INSERTED DETAIL,Resources & Corporate Governance ,Street Cleansing,WSC00,Agency Staff,0003,1174.28,Blue Arrow Limited,145492,10/01/2013,10178410
INSERTED DETAIL,Resources & Corporate Governance ,Domestic Waste Collection,WWC00,Agency Staff,0003,323.32,Blue Arrow Limited,145492,10/01/2013,10178410
INSERTED DETAIL,Resources & Corporate Governance ,Street Cleansing,WSC00,Agency Staff,0003,515.00,Blue Arrow Limited,145492,31/01/2013,10179427
INSERTED DETAIL,Resources & Corporate Governance ,General Financial Services,GFS00,External Contractor & Operator,0742,36195.00,Grant Thornton UK LLP,145501,03/01/2013,10178149
INSERTED DETAIL,Resources & Corporate Governance ,General Financial Services,GFS00,External Contractor & Operator,0742,10156.00,Grant Thornton UK LLP,145501,24/01/2013,10179247
INSERTED DETAIL,Resources & Corporate Governance ,"Communications, Consultation and Information Team",BTR20,Consultation,0378,1020.00,Nortoft Partnerships Ltd,145573,31/01/2013,10179503
INSERTED DETAIL,Sustainable Environment ,Street Scene,ENV30,R&M External Contractors,0100,2151.18,Opus International Consultants (uk) Ltd,145813,31/01/2013,10179387
INSERTED DETAIL,Capital Program ,Disabled Facilities Grant,REN01,Capital Grants,5014,523.22,Inhouse Renovations,145963,17/01/2013,10178865
INSERTED DETAIL,Capital Program ,Open Spaces Refurbishment,LEI08,Capital Contract Payments,5000,6080.00,Larkin Engineering Enterprises LtdT/A Larkin Street Products,146442,24/01/2013,10179119
INSERTED DETAIL,Resources & Corporate Governance,Corporate Property R&M,CPA01,R&M External Contractors,0100,420.00,Enertech Ltd,146673,10/01/2013,10178157
INSERTED DETAIL,Resources & Corporate Governance,Handy man,WHM00,External Contractor & Operator,0742,610.00,Mick Brown Plastering,146699,17/01/2013,10178898
INSERTED DETAIL,Resources & Corporate Governance ,Domestic Waste Collection,WWC00,Agency Staff,0003,502.40,Fresh Recruitment Solutions (FRS) Ltd,146784,17/01/2013,10178798
INSERTED DETAIL,Resources & Corporate Governance ,Trade Waste Collection,WWC01,Agency Staff,0003,629.47,Fresh Recruitment Solutions (FRS) Ltd,146784,17/01/2013,10178802
INSERTED DETAIL,Resources & Corporate Governance ,Retired Employees,RET00,Additional Pension Payments,0014,23137.34,WCC Pension Fund,146914,17/01/2013,10178918
INSERTED DETAIL,Economy Development & Culture,Art Gallery and Museum,AGM00,Postage & Distribution,0370,0.29,TNT Post Midlands Ltd,146983,10/01/2013,10178200
INSERTED DETAIL,Economy Development & Culture,Building Control Services,BCS00,Postage & Distribution,0370,3.60,TNT Post Midlands Ltd,146983,10/01/2013,10178200
INSERTED DETAIL,Economy Development & Culture,Building Regulation Fee Earning Account,BCS99,Postage & Distribution,0370,4.78,TNT Post Midlands Ltd,146983,10/01/2013,10178200
INSERTED DETAIL,Resources & Corporate Governance,Central Business Support Services,CSS15,Postage & Distribution,0370,115.93,TNT Post Midlands Ltd,146983,10/01/2013,10178200
INSERTED DETAIL,Resources & Corporate Governance ,Council Tax and NNDR Collection,CTX01,Postage & Distribution,0370,189.72,TNT Post Midlands Ltd,146983,10/01/2013,10178200
INSERTED DETAIL,Resources & Corporate Governance ,Electoral Registration,ERG00,Postage & Distribution,0370,19.40,TNT Post Midlands Ltd,146983,10/01/2013,10178200
INSERTED DETAIL,Sustainable Inclusive Communities,Housing Benefit Administration,HBA00,Postage & Distribution,0370,155.96,TNT Post Midlands Ltd,146983,10/01/2013,10178200
INSERTED DETAIL,Housing Revenue Account ,Supervision and Management General,MAN00,Postage & Distribution,0370,80.45,TNT Post Midlands Ltd,146983,10/01/2013,10178200
INSERTED DETAIL,Economy Development & Culture,Visitor Centre,VSC00,Postage & Distribution,0370,232.23,TNT Post Midlands Ltd,146983,10/01/2013,10178200
INSERTED DETAIL,Resources & Corporate Governance ,General Administration,WAD00,Postage & Distribution,0370,10.84,TNT Post Midlands Ltd,146983,10/01/2013,10178200
INSERTED DETAIL,Economy Development & Culture,Art Gallery and Museum,AGM00,Postage & Distribution,0370,280.42,TNT Post Midlands Ltd,146983,10/01/2013,10178201
INSERTED DETAIL,Resources & Corporate Governance,Central Business Support Services,CSS15,Postage & Distribution,0370,20.00,TNT Post Midlands Ltd,146983,10/01/2013,10178201
INSERTED DETAIL,Resources & Corporate Governance ,Council Tax and NNDR Collection,CTX01,Postage & Distribution,0370,42.82,TNT Post Midlands Ltd,146983,10/01/2013,10178201
INSERTED DETAIL,Resources & Corporate Governance ,Electoral Registration,ERG00,Postage & Distribution,0370,0.32,TNT Post Midlands Ltd,146983,10/01/2013,10178201
INSERTED DETAIL,Sustainable Inclusive Communities,Housing Benefit Administration,HBA00,Postage & Distribution,0370,39.11,TNT Post Midlands Ltd,146983,10/01/2013,10178201
INSERTED DETAIL,Housing Revenue Account ,Supervision and Management General,MAN00,Postage & Distribution,0370,33.35,TNT Post Midlands Ltd,146983,10/01/2013,10178201
INSERTED DETAIL,Resources & Corporate Governance ,General Administration,WAD00,Postage & Distribution,0370,2.78,TNT Post Midlands Ltd,146983,10/01/2013,10178201
INSERTED DETAIL,Economy Development & Culture,Building Control Services,BCS00,Postage & Distribution,0370,0.54,TNT Post Midlands Ltd,146983,31/01/2013,10178878
INSERTED DETAIL,Economy Development & Culture,Building Regulation Fee Earning Account,BCS99,Postage & Distribution,0370,0.71,TNT Post Midlands Ltd,146983,31/01/2013,10178878
INSERTED DETAIL,Resources & Corporate Governance,Central Business Support Services,CSS15,Postage & Distribution,0370,30.62,TNT Post Midlands Ltd,146983,31/01/2013,10178878
INSERTED DETAIL,Resources & Corporate Governance ,Council Tax and NNDR Collection,CTX01,Postage & Distribution,0370,140.54,TNT Post Midlands Ltd,146983,31/01/2013,10178878
INSERTED DETAIL,Resources & Corporate Governance ,Electoral Registration,ERG00,Postage & Distribution,0370,27.12,TNT Post Midlands Ltd,146983,31/01/2013,10178878
INSERTED DETAIL,Sustainable Inclusive Communities,Housing Benefit Administration,HBA00,Postage & Distribution,0370,62.10,TNT Post Midlands Ltd,146983,31/01/2013,10178878
INSERTED DETAIL,Housing Revenue Account ,Supervision and Management General,MAN00,Postage & Distribution,0370,1135.95,TNT Post Midlands Ltd,146983,31/01/2013,10178878
INSERTED DETAIL,Resources & Corporate Governance ,General Administration,WAD00,Postage & Distribution,0370,15.74,TNT Post Midlands Ltd,146983,31/01/2013,10178878
INSERTED DETAIL,Economy Development & Culture,Art Gallery and Museum,AGM00,Postage & Distribution,0370,96.15,TNT Post Midlands Ltd,146983,31/01/2013,10179228
INSERTED DETAIL,Economy Development & Culture,Building Control Services,BCS00,Postage & Distribution,0370,5.24,TNT Post Midlands Ltd,146983,31/01/2013,10179228
INSERTED DETAIL,Economy Development & Culture,Building Regulation Fee Earning Account,BCS99,Postage & Distribution,0370,6.95,TNT Post Midlands Ltd,146983,31/01/2013,10179228
INSERTED DETAIL,Resources & Corporate Governance,Central Business Support Services,CSS15,Postage & Distribution,0370,39.46,TNT Post Midlands Ltd,146983,31/01/2013,10179228
INSERTED DETAIL,Resources & Corporate Governance ,Council Tax and NNDR Collection,CTX01,Postage & Distribution,0370,228.98,TNT Post Midlands Ltd,146983,31/01/2013,10179228
INSERTED DETAIL,Resources & Corporate Governance ,Electoral Registration,ERG00,Postage & Distribution,0370,18.62,TNT Post Midlands Ltd,146983,31/01/2013,10179228
INSERTED DETAIL,Sustainable Inclusive Communities,Housing Benefit Administration,HBA00,Postage & Distribution,0370,142.28,TNT Post Midlands Ltd,146983,31/01/2013,10179228
INSERTED DETAIL,Housing Revenue Account ,Supervision and Management General,MAN00,Postage & Distribution,0370,18.62,TNT Post Midlands Ltd,146983,31/01/2013,10179228
INSERTED DETAIL,Economy Development & Culture,Visitor Centre,VSC00,Postage & Distribution,0370,9.73,TNT Post Midlands Ltd,146983,31/01/2013,10179228
INSERTED DETAIL,Resources & Corporate Governance ,General Administration,WAD00,Postage & Distribution,0370,43.63,TNT Post Midlands Ltd,146983,31/01/2013,10179228
INSERTED DETAIL,Capital Program ,Kitchen Modifications,HIK10,Capital Contract Payments,5000,26500.00,CLC Contractors Ltd,147076,24/01/2013,10179154
INSERTED DETAIL,Housing Revenue Account ,Gas Heating Systems,UMR01,R&M External Contractors,0100,13765.82,Integral UK Ltd,147080,10/01/2013,10178204
INSERTED DETAIL,Housing Revenue Account ,Unplanned Maintenance and Repair,UMR00,R&M External Contractors,0100,1244.92,Integral UK Ltd,147080,10/01/2013,10178654
INSERTED DETAIL,Housing Revenue Account ,Gas Heating Systems,UMR01,R&M External Contractors,0100,165.00,Integral UK Ltd,147080,10/01/2013,10178654
INSERTED DETAIL,Capital Program ,Disabled Adaptations,HCR01,Capital Contract Payments,5000,7384.90,Intelligent Disabled Solutions Ltd,147081,31/01/2013,10179418
INSERTED DETAIL,Capital Program ,Queen's Diamond Jubilee Leisure Centre Project,LEI03,Capital Contract Payments,5000,4428.75,B3 Architects,147190,10/01/2013,10178047
INSERTED DETAIL,Resources & Corporate Governance,Handy man,WHM00,Materials,0303,432.25,ECA Supplies (Coventry) Limited,147276,10/01/2013,10178423
INSERTED DETAIL,Resources & Corporate Governance,Handy man,WHM00,Materials,0303,782.40,ECA Supplies (Coventry) Limited,147276,24/01/2013,10178424
INSERTED DETAIL,Capital Program ,Electric to Gas Conversions,HIM04,Capital Contract Payments,5000,78551.00,Liberty Gas Group,147368,03/01/2013,10177743
INSERTED DETAIL,Capital Program ,Heating Upgrades,HIM01,Capital Contract Payments,5000,1333.00,Liberty Gas Group,147368,17/01/2013,10178696
INSERTED DETAIL,Capital Program ,Bathroom Modifications,HIS01,Capital Contract Payments,5000,2598.00,TSG Building Services Plc,147369,31/01/2013,10179153
INSERTED DETAIL,Capital Program ,Bathroom Modifications,HIS01,Capital Contract Payments,5000,6403.31,TSG Building Services Plc,147369,31/01/2013,10179160
INSERTED DETAIL,Capital Program ,Bathroom Modifications,HIS01,Capital Contract Payments,5000,7573.30,TSG Building Services Plc,147369,31/01/2013,10179161
INSERTED DETAIL,Capital Program ,Corporate Property Enhancements,CPE00,Capital Contract Payments,5000,3681.64,Arden Construction Ltd,147430,03/01/2013,10177758
INSERTED DETAIL,Capital Program ,Corporate Property Enhancements,CPE00,Capital Contract Payments,5000,3191.73,Arden Construction Ltd,147430,03/01/2013,10177759
INSERTED DETAIL,Capital Program ,Corporate Property Enhancements,CPE00,Capital Contract Payments,5000,2957.35,Arden Construction Ltd,147430,03/01/2013,10177760
INSERTED DETAIL,Capital Program ,Corporate Property Enhancements,CPE00,Capital Contract Payments,5000,4600.09,Arden Construction Ltd,147430,03/01/2013,10177761
INSERTED DETAIL,Resources & Corporate Governance,Corporate Property R&M,CPA01,R&M External Contractors,0100,3483.16,Arden Construction Ltd,147430,03/01/2013,10177889
INSERTED DETAIL,Capital Program ,Corporate Property Enhancements,CPE00,Capital Contract Payments,5000,468.00,Arden Construction Ltd,147430,24/01/2013,10179116
INSERTED DETAIL,Capital Program ,Kitchen Modifications,HIK10,Capital Contract Payments,5000,5479.83,Rixonway Kitchens Ltd,147446,24/01/2013,10178940
INSERTED DETAIL,Capital Program ,Kitchen Modifications,HIK10,Capital Contract Payments,5000,5640.35,Rixonway Kitchens Ltd,147446,24/01/2013,10178941
INSERTED DETAIL,Capital Program ,Kitchen Modifications,HIK10,Capital Contract Payments,5000,8438.15,Rixonway Kitchens Ltd,147446,24/01/2013,10179069
INSERTED DETAIL,Capital Program ,Kitchen Modifications,HIK10,Capital Contract Payments,5000,4785.55,Rixonway Kitchens Ltd,147446,24/01/2013,10179070
INSERTED DETAIL,Resources & Corporate Governance,Handy man,WHM00,Materials,0303,878.65,Robert Pochin Limited,147536,03/01/2013,10178100
INSERTED DETAIL,Capital Program ,Disabled Facilities Grant,REN01,Capital Grants,5014,4410.00,Pollards Property Solution,147541,31/01/2013,10179565
INSERTED DETAIL,Resources & Corporate Governance ,Grounds Maintenance,WGM00,Vehicle Repair and Maintenance,0200,708.08,Chris Tallis Farm Machinery Limited,147758,17/01/2013,10178727
INSERTED DETAIL,Capital Program ,Viaduct Cycleways,CYC02,Capital Contract Payments,5000,70626.93,Currall Lewis & Martin (Construction) Ltd,147769,03/01/2013,10178071
INSERTED DETAIL,Capital Program ,Viaduct Cycleways,CYC02,Capital Contract Payments,5000,220626.93,Currall Lewis & Martin (Construction) Ltd,147769,24/01/2013,10179202
INSERTED DETAIL,Resources & Corporate Governance ,General Financial Services,GFS00,External Contractor & Operator,0742,4344.66,Tradition (UK) Ltd,147842,31/01/2013,10179333
INSERTED DETAIL,Resources & Corporate Governance ,"Communications, Consultation and Information Team",BTR20,Publicity & Marketing,0377,9225.00,Cole Creative Communications Ltd,147857,03/01/2013,10178154
INSERTED DETAIL,Capital Program ,Queen's Diamond Jubilee Leisure Centre Project,LEI03,Capital Contract Payments,5000,636803.06,Shepherd Construction Ltd,148014,10/01/2013,10178599
INSERTED DETAIL,Resources & Corporate Governance,Handy man,WHM00,External Contractor & Operator,0742,517.50,Dean Hudson,148035,03/01/2013,10178356
INSERTED DETAIL,Resources & Corporate Governance,Handy man,WHM00,External Contractor & Operator,0742,562.50,Dean Hudson,148035,17/01/2013,10179029
INSERTED DETAIL,Resources & Corporate Governance ,Human Resources Centralised Services,RES31,Training fees,0011,1275.00,NEED British Sign Language,148077,10/01/2013,10178210
INSERTED DETAIL,Resources & Corporate Governance ,Human Resources Centralised Services,RES31,Training fees,0011,850.00,NEED British Sign Language,148077,24/01/2013,10179275
INSERTED DETAIL,Resources & Corporate Governance ,Occupational Health and Welfare,OHW00,Employee wellbeing/Other employee expenses,0021,2500.00,Team Prevent UK Ltd,148151,31/01/2013,10179695
INSERTED DETAIL,Capital Program ,Great Central Walk Bridge,LEI14,Capital Contract Payments,5000,650.00,Stone Tech (Cleveland) Ltd,148176,17/01/2013,10178604
INSERTED DETAIL,Capital Program ,Open Spaces Refurbishment,LEI08,Capital Contract Payments,5000,106.00,Stone Tech (Cleveland) Ltd,148176,24/01/2013,10178605
INSERTED DETAIL,Capital Program ,Great Central Walk Bridge,LEI14,Capital Contract Payments,5000,544.00,Stone Tech (Cleveland) Ltd,148176,24/01/2013,10178605
INSERTED DETAIL,Capital Program ,Corporate Property Enhancements,CPE00,Capital Contract Payments,5000,500.00,The Engineering Practice Ltd,148180,10/01/2013,10178711
INSERTED DETAIL,Economy Development & Culture,Ken Marriott Leisure Centre,KML00,Other,0763,3450.00,Strategic Leisure,148196,10/01/2013,10178708
INSERTED DETAIL,,Balance Sheet,BS,Car Salary Sacrifice,9243,1082.25,Fleethire Ltd,148197,17/01/2013,10178768
INSERTED DETAIL,Resources & Corporate Governance ,IT Procurement,CMP00,IT Capital Expenditure,5025,496.84,Probrand Limited,148276,10/01/2013,10178221
INSERTED DETAIL,Resources & Corporate Governance,Corporate Property R&M,CPA01,R&M External Contractors,0100,550.00,Frontier Engineering UK Ltd,148303,10/01/2013,10178214
INSERTED DETAIL,Capital Program ,Pettiver Crescent,PCH00,Capital Contract Payments,5000,1312.50,"Gotch, Saunders & Surridge LLP , t/a GSS Architecture",148432,10/01/2013,10178156
INSERTED DETAIL,Resources & Corporate Governance,Handy man,WHM00,External Contractor & Operator,0742,600.00,C P W Building Services,148437,10/01/2013,10178560
INSERTED DETAIL,Capital Program ,Corporate Property Enhancements,CPE00,Capital Contract Payments,5000,9244.72,Envirotech Building Services Ltd,148501,31/01/2013,10179322
INSERTED DETAIL,Capital Program ,Corporate Property Enhancements,CPE00,Capital Contract Payments,5000,4249.47,Envirotech Building Services Ltd,148501,31/01/2013,10179364
INSERTED DETAIL,Capital Program ,Corporate Property Enhancements,CPE00,Capital Contract Payments,5000,2572.39,Envirotech Building Services Ltd,148501,31/01/2013,10179381
INSERTED DETAIL,Capital Program ,Great Central Walk Bridge,LEI14,Capital Contract Payments,5000,885.71,Wernick Hire Limited,148596,10/01/2013,10178240
INSERTED DETAIL,Housing Revenue Account ,Unplanned Maintenance and Repair,UMR00,R&M External Contractors,0100,500.00,Reuse Collections Ltd t/a Berryman,148649,17/01/2013,10177479
INSERTED DETAIL,Economy Development & Culture,Art Gallery and Museum,AGM00,Other Miscellaneous Expenses,0444,1050.00,REDACTED PERSONAL DATA,148666,10/01/2013,10178662
INSERTED DETAIL,Resources & Corporate Governance,Handy man,WHM00,Materials,0303,1740.41,Warren Insulations,148670,17/01/2013,10178209
INSERTED DETAIL,Economy Development & Culture,Planning General/Income,PLN00,Costs Awarded,0745,4000.00,I G Land & Planning,148693,03/01/2013,10178192
INSERTED DETAIL,Housing Revenue Account ,Property Maintenance,MAN23,Payments to Other Local Authorities,0710,1280.00,Portsmouth City Council,148695,03/01/2013,10178346
INSERTED DETAIL,Economy Development & Culture,Ken Marriott Leisure Centre,KML00,Other,0763,3740.00,Mr Jason  Coppel,148710,31/01/2013,10178762
INSERTED DETAIL,Resources & Corporate Governance ,Garage Internal,WVR01,Agency Staff,0003,783.20,Proactive Personnel Ltd,148724,31/01/2013,10179433
INSERTED DETAIL,Capital Program ,Private Sector Renovation Loans,REN00,Capital Contract Payments,5000,4450.00,Armour,148726,24/01/2013,10179180
INSERTED DETAIL,Capital Program ,Private Sector Renovation Loans,REN00,Capital Contract Payments,5000,1050.00,Armour,148726,24/01/2013,10179184
INSERTED DETAIL,Economy Development & Culture,Planning General/Income,PLN00,Fees & Charges - Outside Scope,1403,2310.00,REDACTED PERSONAL DATA,148736,24/01/2013,10179271
INSERTED DETAIL,Resources & Corporate Governance ,General Financial Services,GFS00,External Contractor & Operator,0742,1505.14,Arlingclose Ltd,148743,24/01/2013,10179308
detail,Sustainable Inclusive Communities,Housing Benefit Payments,HBP00,Rent Allowances,0760,658.96,Housing 21,148755,31/01/2013,10179566
,Economy Development & Culture,Visitor Centre,VSC00,Tickets for Tour,1403,695.00,Leicester Tigers Football Club,27001,24/01/2013,
,,Balance Sheet,BS,NNDR Pooling,9476,1580004.00,CLG,26714,03/01/2013,
,Resources & Corporate Governance ,General Financial Services,GFS00,External Contractor & Operator,0742,1694.00,Co-operative Bank,26727,04/01/2013,
,Resources & Corporate Governance ,General Financial Services,GFS00,External Contractor & Operator,0742,2199.97,Co-operative Bank,26727,04/01/2013,
,Resources & Corporate Governance ,General Financial Services,GFS00,External Contractor & Operator,0742,890.50,Co-operative Bank,26727,04/01/2013,
,,Balance Sheet,BS,NNDR Pooling,9476,1580004.00,CLG,26842,22/01/2013,
,,Balance Sheet,BS,Housing Pooling payment,9820,86614.34,CLG,26911,31/01/2013,
